bitfinex-derivatives/quotes_BTCF0:USTF0_20241120
["timestamp","ask_amount","ask_price","bid_price","bid_amount"]
[1732104107753,0.053343,93634.0,93633.0,0.005]
[1732104107940,0.05335,93622.0,93620.0,0.06149716]
[1732104108146,0.05335,93622.0,93620.0,0.03]
[1732104108452,0.06002282,93622.0,93619.0,0.3608]
[1732104108658,0.053358,93608.0,93599.0,0.3934]
[1732104108950,0.053362,93600.0,93599.0,0.3934]
[1732104109253,0.00667282,93600.0,93599.0,0.446763]
[1732104109547,0.053358,93608.0,93607.0,0.053358]
[1732104109753,0.06003198,93608.0,93607.0,0.053358]
[1732104109947,0.0766339,93608.0,93607.0,0.053358]
[1732104110254,0.0766339,93608.0,93607.0,0.414158]
[1732104110454,0.06003198,93608.0,93607.0,0.3608]
[1732104111143,0.06003185,93608.0,93607.0,0.3608]
[1732104111743,0.053362,93600.0,93596.0,0.0308]
[1732104111940,0.053362,93600.0,93591.0,0.3608]
[1732104111941,0.01660132,93598.0,93591.0,0.3608]
[1732104112140,0.053367,93592.0,93591.0,0.3608]
[1732104112353,0.053371,93585.0,93584.0,0.0966]
[1732104112655,0.053373,93581.0,93580.0,0.3608]
[1732104115655,0.053373,93581.0,93580.0,0.414174]
[1732104115855,0.053373,93581.0,93580.0,0.3608]
[1732104116745,0.053373,93581.0,93574.0,0.03308707]
[1732104116746,0.053376,93576.0,93574.0,8.707e-05]
[1732104116949,0.15572004,93575.0,93574.0,8.707e-05]
[1732104118554,0.51652004,93575.0,93574.0,8.707e-05]
[1732104118949,0.414176,93575.0,93574.0,8.707e-05]
[1732104120261,8.217e-05,93585.0,93574.0,0.36088707]
[1732104120460,0.053372,93583.0,93582.0,0.3608]
[1732104120753,0.053372,93583.0,93582.0,0.3913]
[1732104121567,8.217e-05,93585.0,93582.0,0.3913]
[1732104121752,8.217e-05,93585.0,93584.0,0.15571504]
[1732104122958,0.05345317,93585.0,93584.0,0.15571504]
[1732104123455,0.053366,93593.0,93584.0,0.19504209]
[1732104123658,0.053364,93598.0,93592.0,0.3608]
[1732104123859,0.053364,93598.0,93597.0,0.053364]
[1732104124350,0.053366,93596.0,93595.0,0.053365]
[1732104124549,0.05340976,93596.0,93595.0,0.053365]
[1732104126755,0.05337,93587.0,93586.0,0.0326]
[1732104126949,0.053376,93575.0,93573.0,0.0326]
[1732104127863,0.053376,93575.0,93573.0,0.085977]
[1732104128059,0.053376,93575.0,93574.0,0.05346407]
[1732104135054,0.053371,93587.0,93586.0,0.05337]
[1732104135252,0.053367,93592.0,93591.0,0.053367]
[1732104135560,0.053364,93597.0,93595.0,0.053365]
[1732104135867,0.3608,93613.0,93595.0,0.15570904]
[1732104136063,0.12872,93609.0,93595.0,0.15570904]
[1732104136264,0.053361,93602.0,93595.0,0.15570904]
[1732104136465,0.053357,93610.0,93595.0,0.15570904]
[1732104136763,0.053364,93597.0,93595.0,0.15570904]
[1732104137361,0.12872,93613.0,93595.0,0.15570904]
[1732104137556,0.0329,93614.0,93595.0,0.15570904]
[1732104137557,0.053358,93608.0,93595.0,0.15570904]
[1732104137764,0.053358,93607.0,93595.0,0.15570904]
[1732104137958,0.05336,93605.0,93595.0,0.15570904]
[1732104138157,0.05336,93605.0,93595.0,0.19621181]
[1732104139566,0.053355,93613.0,93595.0,0.19621181]
[1732104139764,0.053357,93611.0,93610.0,0.053356]
[1732104139961,0.053357,93611.0,93610.0,0.414156]
[1732104140164,0.0329,93614.0,93610.0,0.3608]
[1732104140471,0.086255,93614.0,93613.0,0.053355]
[1732104143280,0.053352,93619.0,93611.0,0.10234404]
[1732104143487,0.0313,93624.0,93618.0,0.053352]
[1732104143664,0.053356,93611.0,93610.0,0.3608]
[1732104143867,0.053359,93606.0,93605.0,0.3608]
[1732104144464,0.06003264,93606.0,93605.0,0.3608]
[1732104147278,0.06003264,93606.0,93605.0,0.414159]
[1732104147472,0.06003264,93606.0,93605.0,0.3608]
[1732104147694,0.053366,93593.0,93592.0,0.058366]
[1732104147880,0.053366,93593.0,93592.0,0.053366]
[1732104149369,0.06004098,93593.0,93592.0,0.053366]
[1732104149571,0.00667494,93593.0,93592.0,0.053366]
[1732104149781,0.01661158,93602.0,93591.0,0.3608]
[1732104149782,0.053361,93602.0,93591.0,0.3608]
[1732104150075,0.053361,93602.0,93601.0,0.053361]
[1732104150279,0.16636179,93602.0,93601.0,0.053361]
[1732104150665,0.053367,93593.0,93592.0,0.053367]
[1732104152567,0.0326,93605.0,93591.0,0.3608]
[1732104152765,0.053367,93592.0,93591.0,0.3608]
[1732104153368,0.15571104,93592.0,93591.0,0.3608]
[1732104153567,0.053374,93580.0,93578.0,0.005]
[1732104153776,0.053374,93580.0,93574.0,8.707e-05]
[1732104154680,0.053374,93580.0,93575.0,0.053376]
[1732104155371,0.053368,93590.0,93576.0,0.053376]
[1732104155865,0.10234404,93592.0,93579.0,0.414174]
[1732104156065,0.3608,93593.0,93579.0,0.414174]
[1732104156066,0.3608,93593.0,93583.0,0.10234404]
[1732104156268,0.053367,93592.0,93591.0,0.15571104]
[1732104158076,0.053367,93592.0,93591.0,0.053367]
[1732104158688,0.1312,93604.0,93587.0,0.41417]
[1732104158689,0.053369,93588.0,93587.0,0.41417]
[1732104159382,0.0326,93605.0,93587.0,0.3608]
[1732104159585,0.0326,93605.0,93603.0,0.05336]
[1732104159586,0.053361,93604.0,93603.0,0.05336]
[1732104160175,0.053357,93609.0,93608.0,0.053357]
[1732104163478,0.084154,93615.0,93614.0,0.053354]
[1732104163676,0.414144,93633.0,93625.0,0.053347]
[1732104163677,0.053348,93626.0,93625.0,0.053347]
[1732104165286,0.053353,93617.0,93616.0,0.005]
[1732104165478,0.053354,93615.0,93614.0,0.3608]
[1732104165797,0.053351,93621.0,93620.0,0.05335]
[1732104166473,0.053351,93621.0,93614.0,0.3608]
[1732104166474,0.053354,93616.0,93615.0,0.053354]
[1732104167583,0.053354,93615.0,93614.0,0.3608]
[1732104170487,0.053361,93602.0,93601.0,0.005]
[1732104170708,0.053363,93599.0,93598.0,0.0317]
[1732104170890,0.053363,93599.0,93592.0,0.38215099]
[1732104170891,0.053363,93598.0,93597.0,0.3608]
[1732104171786,0.053363,93598.0,93597.0,0.414164]
[1732104173282,0.053363,93598.0,93597.0,0.3608]
[1732104176985,0.053366,93593.0,93592.0,0.3608]
[1732104177191,0.15571004,93593.0,93592.0,0.3608]
[1732104177790,0.053366,93593.0,93592.0,0.3608]
[1732104180385,0.053366,93593.0,93579.0,0.005]
[1732104180694,0.053375,93578.0,93577.0,0.03872334]
[1732104180993,0.053376,93576.0,93575.0,0.086476]
[1732104181590,0.053373,93582.0,93581.0,0.053371]
[1732104182098,0.0303,93587.0,93575.0,0.0331]
[1732104182294,0.053376,93578.0,93577.0,0.053375]
[1732104182481,0.08367,93587.0,93575.0,0.0331]
[1732104182687,0.053376,93576.0,93575.0,0.0331]
[1732104183596,0.053376,93576.0,93574.0,0.45379298]
[1732104183597,0.053376,93575.0,93574.0,0.36164707]
[1732104183898,0.053376,93575.0,93574.0,0.36088707]
[1732104184092,0.053376,93575.0,93574.0,8.707e-05]
[1732104184796,0.218596,93575.0,93574.0,8.707e-05]
[1732104185186,0.218596,93575.0,93565.0,0.005]
[1732104185187,0.053382,93566.0,93565.0,0.005]
[1732104185495,0.053383,93564.0,93563.0,0.3608]
[1732104186191,0.05346736,93564.0,93563.0,0.3608]
[1732104187187,0.05346736,93564.0,93551.0,0.005]
[1732104187188,0.053389,93553.0,93551.0,0.005]
[1732104187387,0.05339,93552.0,93551.0,0.3608]
[1732104187591,0.13232,93560.0,93551.0,0.3608]
[1732104187893,0.053392,93548.0,93547.0,0.053392]
[1732104188097,0.053392,93548.0,93545.0,0.3608]
[1732104188301,0.13232,93560.0,93545.0,0.3608]
[1732104188302,0.053393,93546.0,93545.0,0.414194]
[1732104189001,0.053393,93546.0,93545.0,0.3608]
[1732104189404,0.053393,93546.0,93545.0,0.414194]
[1732104189600,0.053386,93560.0,93545.0,0.46314404]
[1732104189794,0.05346736,93564.0,93563.0,0.053383]
[1732104190196,0.05346736,93564.0,93563.0,1.553383]
[1732104191289,8.436e-05,93564.0,93563.0,0.053383]
[1732104191791,8.436e-05,93564.0,93563.0,1.553383]
[1732104192795,0.0313,93585.0,93563.0,1.59393233]
[1732104193000,0.0313,93585.0,93584.0,0.414171]
[1732104193001,0.084671,93585.0,93584.0,0.414171]
[1732104193399,0.1237098,93606.0,93584.0,0.46314404]
[1732104193705,0.053367,93592.0,93591.0,0.053367]
[1732104195406,0.10234404,93606.0,93591.0,0.053367]
[1732104195598,0.053361,93603.0,93602.0,0.05336]
[1732104198806,0.053359,93608.0,93607.0,0.053357]
[1732104204602,0.053362,93603.0,93602.0,0.05336]
[1732104205909,0.053366,93593.0,93592.0,0.0934967]
[1732104206102,0.053354,93615.0,93591.0,0.3608]
[1732104206103,0.15571104,93592.0,93591.0,0.3608]
[1732104206303,0.13314404,93592.0,93578.0,0.005]
[1732104206513,0.053371,93584.0,93583.0,0.3608]
[1732104206809,0.053371,93584.0,93576.0,0.0328]
[1732104207011,0.053375,93577.0,93576.0,0.3608]
[1732104207203,0.10234404,93585.0,93576.0,0.3608]
[1732104207401,0.10234404,93593.0,93587.0,0.053369]
[1732104207603,0.053369,93588.0,93587.0,0.053369]
[1732104208003,0.053369,93588.0,93576.0,0.3658]
[1732104208298,0.053373,93584.0,93583.0,0.053372]
[1732104209416,0.053375,93580.0,93579.0,0.053374]
[1732104210517,0.053375,93577.0,93576.0,0.3608]
[1732104211644,0.053375,93577.0,93576.0,0.414176]
[1732104211836,0.053375,93577.0,93576.0,0.3608]
[1732104212228,0.053375,93577.0,93576.0,0.3568]
[1732104213442,0.053375,93577.0,93576.0,0.410176]
[1732104215942,0.053375,93577.0,93576.0,0.3568]
[1732104221532,0.053375,93577.0,93568.0,0.04014901]
[1732104221839,0.053375,93577.0,93566.0,0.005]
[1732104221840,0.053381,93567.0,93566.0,0.053382]
[1732104222140,0.053381,93567.0,93564.0,0.0328]
[1732104222343,0.10234404,93579.0,93564.0,0.0328]
[1732104222344,0.053382,93565.0,93564.0,0.0328]
[1732104222640,0.053382,93565.0,93564.0,0.086183]
[1732104222856,0.053382,93565.0,93564.0,0.09347777]
[1732104223342,0.053382,93565.0,93564.0,0.04009477]
[1732104223547,0.10234404,93572.0,93557.0,0.0329]
[1732104223745,0.053386,93563.0,93562.0,0.053384]
[1732104223951,0.053386,93559.0,93558.0,0.053386]
[1732104224561,0.053386,93559.0,93557.0,0.07230882]
[1732104224562,0.053386,93558.0,93557.0,0.03940882]
[1732104224845,0.053387,93556.0,93555.0,0.3608]
[1732104227335,0.053393,93546.0,93543.0,0.083495]
[1732104227550,0.053388,93555.0,93543.0,0.083495]
[1732104227551,0.053394,93545.0,93543.0,0.083495]
[1732104227849,0.053394,93545.0,93533.0,0.46314404]
[1732104227850,0.053394,93545.0,93544.0,0.414194]
[1732104228827,0.053394,93545.0,93544.0,0.45375329]
[1732104232310,0.053394,93545.0,93544.0,0.40035929]
[1732104232824,0.053394,93545.0,93544.0,0.3608]
[1732104237526,0.15573404,93551.0,93543.0,0.03999157]
[1732104237735,0.15573804,93544.0,93539.0,0.3608]
[1732104237915,0.053396,93540.0,93531.0,0.3608]
[1732104238116,0.053401,93533.0,93532.0,0.0534]
[1732104238725,0.053398,93537.0,93536.0,0.053396]
[1732104239324,0.053398,93537.0,93536.0,1.553396]
[1732104240328,0.053398,93537.0,93536.0,0.053396]
[1732104241637,0.053398,93537.0,93533.0,1.5]
[1732104241638,0.10234404,93544.0,93533.0,0.0534]
[1732104241826,0.10234404,93544.0,93540.0,0.3608]
[1732104242021,0.053396,93541.0,93540.0,0.3608]
[1732104242628,0.053396,93541.0,93540.0,0.414196]
[1732104242924,0.053396,93541.0,93540.0,0.3608]
[1732104244621,0.0534,93533.0,93532.0,0.03927752]
[1732104244939,0.053401,93532.0,93531.0,0.414201]
[1732104245727,0.053399,93537.0,93531.0,0.3608]
[1732104245934,0.053399,93537.0,93536.0,0.053398]
[1732104246623,0.0534,93533.0,93531.0,0.45352549]
[1732104246829,0.0534,93533.0,93532.0,0.053401]
[1732104247024,0.053391,93549.0,93531.0,0.40088349]
[1732104247025,0.10234404,93540.0,93531.0,0.40088349]
[1732104247232,0.053401,93532.0,93531.0,0.45352449]
[1732104248023,0.053399,93536.0,93531.0,0.40012349]
[1732104248327,0.053399,93536.0,93535.0,0.053399]
[1732104249628,0.10234404,93547.0,93531.0,0.40088349]
[1732104249629,0.053401,93532.0,93531.0,0.40088349]
[1732104249834,0.053401,93532.0,93531.0,0.40012349]
[1732104250535,0.053401,93532.0,93531.0,0.3608]
[1732104251430,0.053401,93532.0,93527.0,0.0324]
[1732104251431,0.053403,93528.0,93527.0,0.0324]
[1732104253228,0.0324,93531.0,93525.0,8.023e-05]
[1732104253429,0.053404,93526.0,93525.0,8.023e-05]
[1732104253937,0.15574804,93526.0,93525.0,8.023e-05]
[1732104263240,0.28502804,93526.0,93525.0,8.023e-05]
[1732104266131,0.38737208,93526.0,93525.0,2.3e-07]
[1732104266336,0.28502804,93526.0,93525.0,2.3e-07]
[1732104266538,0.05341,93516.0,93515.0,0.005]
[1732104266742,0.05341,93516.0,93504.0,0.005]
[1732104266743,0.053416,93505.0,93504.0,0.005]
[1732104266944,0.053419,93501.0,93499.0,0.36156]
[1732104267245,0.053419,93501.0,93499.0,0.3608]
[1732104267442,0.05350194,93501.0,93499.0,0.3608]
[1732104267641,0.05350194,93501.0,93500.0,0.13983348]
[1732104269446,0.05350194,93501.0,93500.0,0.1]
[1732104269632,0.08430194,93501.0,93500.0,0.1]
[1732104270254,0.44510194,93501.0,93500.0,0.1]
[1732104271648,0.56798194,93501.0,93500.0,0.1]
[1732104271846,0.17638194,93501.0,93500.0,0.1]
[1732104272739,0.27872598,93501.0,93489.0,0.005]
[1732104272940,0.053428,93485.0,93484.0,0.00660457]
[1732104273144,0.053428,93485.0,93484.0,0.00160457]
[1732104273440,0.15577204,93485.0,93484.0,0.00160457]
[1732104274345,0.15585498,93485.0,93484.0,0.00160457]
[1732104275748,0.053433,93476.0,93475.0,0.3608]
[1732104275947,0.15577704,93476.0,93475.0,0.3608]
[1732104277952,0.053435,93472.0,93471.0,0.40106081]
[1732104278152,0.053435,93472.0,93471.0,0.3608]
[1732104280051,0.176355,93472.0,93471.0,0.3608]
[1732104280450,0.12292,93475.0,93471.0,0.3608]
[1732104280757,0.05343,93483.0,93482.0,0.053428]
[1732104280948,0.05343,93483.0,93482.0,1.914228]
[1732104281544,0.05351094,93485.0,93484.0,0.053428]
[1732104285256,0.053428,93484.0,93483.0,0.0331]
[1732104285552,0.053429,93483.0,93482.0,0.3608]
[1732104285747,0.15577304,93483.0,93482.0,0.3608]
[1732104285949,0.053435,93474.0,93471.0,0.40692644]
[1732104286148,0.053435,93474.0,93473.0,0.053435]
[1732104286447,0.053435,93472.0,93471.0,0.415035]
[1732104286650,0.053435,93472.0,93471.0,0.414235]
[1732104289249,0.053435,93472.0,93471.0,0.3608]
[1732104289958,0.053435,93472.0,93471.0,0.414236]
[1732104290460,0.05343,93483.0,93471.0,0.3608]
[1732104290662,0.053435,93473.0,93472.0,0.053435]
[1732104290865,0.053429,93483.0,93482.0,0.053428]
[1732104291157,0.053429,93483.0,93482.0,0.414228]
[1732104291961,0.15585498,93485.0,93484.0,0.053428]
[1732104295369,0.053429,93483.0,93482.0,0.3608]
[1732104295562,0.05343,93481.0,93480.0,0.05343]
[1732104296566,0.05343,93481.0,93480.0,0.0933931]
[1732104297367,0.10242698,93485.0,93475.0,0.053433]
[1732104297570,0.15577704,93476.0,93475.0,0.09285693]
[1732104298256,0.15577704,93476.0,93475.0,0.053433]
[1732104298869,0.15577704,93476.0,93474.0,0.3608]
[1732104298870,0.053434,93475.0,93474.0,0.3608]
[1732104299069,0.10234404,93476.0,93475.0,0.053434]
[1732104299272,0.053433,93476.0,93475.0,0.053434]
[1732104303366,0.05,93482.0,93481.0,0.05343]
[1732104304070,0.05,93482.0,93481.0,0.24395489]
[1732104304778,0.05,93482.0,93481.0,0.05343]
[1732104306974,0.10343,93482.0,93481.0,0.05343]
[1732104307561,0.10343,93482.0,93481.0,0.24401691]
[1732104307966,0.10343,93482.0,93481.0,0.05343]
[1732104308577,0.10343,93482.0,93481.0,0.24401691]
[1732104308773,0.10343,93482.0,93481.0,0.05343]
[1732104308973,0.05,93482.0,93481.0,0.05343]
[1732104310875,0.05,93482.0,93481.0,0.41423]
[1732104311078,0.22390362,93513.0,93481.0,0.78012]
[1732104311282,0.053414,93510.0,93509.0,0.053414]
[1732104312069,0.00160447,93511.0,93508.0,0.3608]
[1732104312278,0.053414,93509.0,93498.0,0.005]
[1732104312577,0.053414,93509.0,93496.0,0.36156]
[1732104312578,0.05342,93500.0,93499.0,0.053419]
[1732104312789,0.15576404,93500.0,93499.0,0.053419]
[1732104312987,0.10234404,93507.0,93506.0,0.053416]
[1732104313188,0.10234404,93507.0,93506.0,0.414216]
[1732104313675,0.15575904,93507.0,93506.0,0.414216]
[1732104316690,0.15575904,93507.0,93506.0,0.053416]
[1732104317281,0.10234404,93507.0,93496.0,0.4004254]
[1732104317492,0.00160447,93511.0,93496.0,0.4538474]
[1732104317493,0.15576504,93497.0,93496.0,0.4538474]
[1732104317795,0.15576504,93497.0,93487.0,0.36156]
[1732104317796,0.053422,93496.0,93495.0,0.3608]
[1732104317993,0.18816604,93496.0,93495.0,0.3608]
[1732104319488,0.18816604,93496.0,93495.0,0.414222]
[1732104320596,0.18816604,93496.0,93495.0,0.3608]
[1732104322300,0.18816604,93496.0,93484.0,0.005]
[1732104322301,0.053428,93485.0,93484.0,0.005]
[1732104322603,0.053433,93476.0,93475.0,0.414234]
[1732104322790,0.053432,93479.0,93478.0,0.053431]
[1732104325296,0.053429,93484.0,93483.0,0.053428]
[1732104325494,0.053429,93484.0,93483.0,0.414228]
[1732104326103,0.053423,93494.0,93493.0,0.053422]
[1732104326297,0.053421,93497.0,93496.0,0.05342]
[1732104327908,0.053416,93506.0,93503.0,0.053418]
[1732104328104,0.1562,93507.0,93503.0,0.053418]
[1732104328105,0.053417,93504.0,93503.0,0.414218]
[1732104328803,0.053416,93506.0,93505.0,0.053416]
[1732104329996,0.053416,93506.0,93503.0,0.3608]
[1732104329997,0.053413,93511.0,93503.0,0.3608]
[1732104330194,0.053412,93514.0,93513.0,0.05341]
[1732104334904,0.053412,93513.0,93512.0,0.40098627]
[1732104335093,0.053412,93513.0,93512.0,0.40022627]
[1732104335407,0.053412,93513.0,93512.0,0.3608]
[1732104336102,0.10234404,93515.0,93511.0,0.053413]
[1732104336301,0.053412,93512.0,93511.0,0.053413]
[1732104337004,0.053412,93512.0,93511.0,0.414213]
[1732104346700,0.053412,93512.0,93511.0,0.3608]
[1732104346904,0.053412,93512.0,93511.0,0.414213]
[1732104347513,0.22390362,93530.0,93511.0,0.3608]
[1732104347514,0.10234404,93530.0,93511.0,0.3608]
[1732104347719,0.053403,93528.0,93527.0,0.053403]
[1732104348011,0.0332,93532.0,93520.0,0.3608]
[1732104348012,0.086601,93532.0,93531.0,0.053402]
[1732104349703,0.0332,93532.0,93531.0,0.053402]
[1732104351503,0.0332,93532.0,93529.0,0.3608]
[1732104351504,0.00160436,93533.0,93532.0,0.053401]
[1732104351717,0.00160436,93533.0,93532.0,0.414201]
[1732104351919,0.05339,93552.0,93551.0,0.053388]
[1732104352920,0.0328,93556.0,93555.0,0.053388]
[1732104353225,0.053387,93557.0,93556.0,0.053387]
[1732104354820,0.0327,93566.0,93554.0,0.32115472]
[1732104355116,0.0327,93566.0,93565.0,0.053382]
[1732104355117,0.053382,93566.0,93565.0,0.053382]
[1732104355323,0.00160377,93573.0,93572.0,0.053378]
[1732104359621,0.1,93600.0,93585.0,0.05337]
[1732104359809,0.10064,93600.0,93599.0,0.414163]
[1732104360011,0.1,93600.0,93599.0,0.414163]
[1732104364621,0.1,93600.0,93599.0,0.45478575]
[1732104365618,0.153362,93600.0,93599.0,0.3608]
[1732104365831,0.053367,93591.0,93590.0,0.3608]
[1732104366125,0.1,93600.0,93590.0,0.3608]
[1732104366126,0.053364,93597.0,93590.0,0.3608]
[1732104366425,0.0321,93596.0,93595.0,0.053365]
[1732104366922,0.085465,93596.0,93595.0,0.053365]
[1732104367126,0.153362,93600.0,93598.0,0.053363]
[1732104367328,0.153362,93600.0,93599.0,0.053363]
[1732104367930,0.1,93600.0,93599.0,0.053363]
[1732104369616,0.1,93600.0,93599.0,0.085363]
[1732104369817,0.1,93600.0,93599.0,0.12574796]
[1732104370222,0.1,93600.0,93599.0,1.62574796]
[1732104371818,0.1,93600.0,93599.0,0.09374796]
[1732104372123,0.1,93600.0,93598.0,0.3608]
[1732104372324,0.1,93600.0,93594.0,0.053365]
[1732104372325,0.053365,93595.0,93594.0,0.053365]
[1732104373118,0.06003939,93595.0,93594.0,0.053365]
[1732104373315,0.053367,93591.0,93590.0,0.36164]
[1732104373533,0.053367,93591.0,93590.0,0.3608]
[1732104373723,0.06004169,93591.0,93590.0,0.3608]
[1732104376121,0.07653083,93591.0,93590.0,0.3608]
[1732104376329,0.06004169,93591.0,93590.0,0.3608]
[1732104376933,0.0765676,93591.0,93590.0,0.3608]
[1732104377123,0.06004169,93591.0,93590.0,0.3608]
[1732104378429,0.06004169,93591.0,93590.0,1.8608]
[1732104379017,0.06296169,93591.0,93590.0,1.8608]
[1732104379436,0.06296169,93591.0,93590.0,1.5]
[1732104380929,0.06296169,93591.0,93590.0,1.553368]
[1732104380930,0.056287,93591.0,93590.0,1.553368]
[1732104381931,0.056287,93591.0,93590.0,1.5]
[1732104383523,0.05337,93587.0,93586.0,0.3608]
[1732104383723,0.053373,93581.0,93580.0,0.04041465]
[1732104383922,0.053375,93578.0,93576.0,0.053376]
[1732104384642,0.053375,93578.0,93577.0,0.40131742]
[1732104387235,0.053375,93578.0,93577.0,0.3608]
[1732104387541,0.15571904,93578.0,93571.0,0.00160286]
[1732104387836,0.053378,93572.0,93571.0,0.00160286]
[1732104389347,0.414178,93572.0,93571.0,0.00160286]
[1732104393835,0.053384,93561.0,93560.0,0.005]
[1732104394039,0.05339,93551.0,93550.0,0.00160342]
[1732104394425,0.41419,93551.0,93550.0,0.00160342]
[1732104396836,0.053393,93546.0,93545.0,0.053393]
[1732104397626,0.053394,93544.0,93543.0,0.03996841]
[1732104397828,0.0328,93560.0,93540.0,0.10244919]
[1732104397829,0.053386,93559.0,93540.0,0.10244919]
[1732104398029,0.36144,93561.0,93552.0,0.10234404]
[1732104398240,0.3608,93561.0,93560.0,0.053385]
[1732104399741,0.3608,93561.0,93554.0,1.50076]
[1732104400042,0.053388,93554.0,93553.0,0.083789]
[1732104400433,0.3608,93561.0,93558.0,0.053385]
[1732104400434,0.053386,93559.0,93558.0,0.053385]
[1732104400633,0.3608,93561.0,93560.0,0.053385]
[1732104401138,0.3608,93561.0,93553.0,0.07085453]
[1732104401336,0.053387,93557.0,93556.0,0.053387]
[1732104401841,0.414185,93561.0,93560.0,0.053385]
[1732104402138,0.3608,93561.0,93560.0,0.053385]
[1732104402527,0.3608,93561.0,93560.0,0.084685]
[1732104402729,0.053383,93563.0,93560.0,0.0313]
[1732104402946,0.053383,93563.0,93562.0,0.053384]
[1732104403650,0.053383,93563.0,93560.0,0.0313]
[1732104403651,0.053384,93561.0,93560.0,0.0313]
[1732104404144,0.053384,93561.0,93560.0,0.084685]
[1732104406230,0.00292,93563.0,93562.0,0.053384]
[1732104407643,0.053377,93575.0,93574.0,0.053377]
[1732104408636,0.3608,93581.0,93566.0,0.005]
[1732104408838,0.053379,93572.0,93570.0,0.053379]
[1732104409040,0.053379,93572.0,93565.0,0.29279323]
[1732104409041,0.053379,93571.0,93565.0,0.29279323]
[1732104409432,0.053379,93571.0,93566.0,0.19044919]
[1732104409943,0.053379,93571.0,93570.0,0.053379]
[1732104410248,0.3608,93581.0,93565.0,0.19044919]
[1732104410546,0.053382,93567.0,93565.0,0.19044919]
[1732104410852,0.053379,93572.0,93570.0,0.053379]
[1732104411036,0.053379,93572.0,93564.0,0.19044919]
[1732104411037,0.46370405,93581.0,93564.0,0.19044919]
[1732104411234,0.053376,93575.0,93574.0,0.053377]
[1732104411843,0.053374,93580.0,93574.0,0.053377]
[1732104412035,0.053376,93575.0,93574.0,0.053377]
[1732104412748,0.36136001,93581.0,93566.0,0.19544919]
[1732104412943,0.36136001,93581.0,93563.0,0.005]
[1732104412944,0.3608,93581.0,93569.0,0.19044919]
[1732104413150,0.053379,93572.0,93571.0,0.053379]
[1732104413831,0.3608,93581.0,93570.0,0.19044919]
[1732104413832,0.053379,93571.0,93570.0,0.19044919]
[1732104414035,0.053379,93571.0,93564.0,0.25377967]
[1732104414036,0.46314404,93581.0,93564.0,0.25377967]
[1732104414236,0.053382,93567.0,93566.0,0.053381]
[1732104418448,0.053382,93567.0,93563.0,0.04059174]
[1732104418449,0.053379,93571.0,93570.0,0.053379]
[1732104421542,0.053379,93571.0,93570.0,0.2434735]
[1732104421852,0.05338,93568.0,93567.0,0.1900945]
[1732104422043,0.46314404,93581.0,93563.0,0.23068624]
[1732104422244,0.053382,93566.0,93565.0,0.053382]
[1732104422858,0.053379,93571.0,93570.0,0.053379]
[1732104425755,0.053379,93571.0,93568.0,0.1900945]
[1732104425756,0.053378,93574.0,93573.0,0.053377]
[1732104425953,0.053378,93574.0,93573.0,0.2434715]
[1732104426140,0.053378,93574.0,93573.0,0.053377]
[1732104429250,0.053378,93574.0,93573.0,0.24390383]
[1732104429452,0.053378,93574.0,93573.0,0.053377]
[1732104430451,0.053378,93573.0,93572.0,0.19052683]
[1732104430652,0.053379,93572.0,93570.0,0.053379]
[1732104430858,0.053379,93572.0,93568.0,0.25377967]
[1732104430859,0.053378,93573.0,93572.0,0.053378]
[1732104431057,0.053378,93573.0,93572.0,0.2439712]
[1732104431457,0.053378,93573.0,93572.0,0.053378]
[1732104431659,0.36136001,93577.0,93569.0,0.25377967]
[1732104431862,0.053378,93573.0,93572.0,0.1906188]
[1732104432250,0.053378,93572.0,93571.0,0.1906188]
[1732104433462,0.053379,93570.0,93569.0,0.05338]
[1732104434557,0.053379,93570.0,93569.0,0.30715967]
[1732104434753,0.053379,93570.0,93569.0,0.05338]
[1732104437958,0.053382,93566.0,93565.0,0.02136312]
[1732104438165,0.053382,93566.0,93565.0,0.07474512]
[1732104439663,0.0327,93569.0,93563.0,0.25431753]
[1732104439664,0.053383,93564.0,93563.0,0.25431753]
[1732104440051,0.053384,93562.0,93561.0,0.65588502]
[1732104440252,0.053384,93562.0,93561.0,0.03992749]
[1732104440455,0.053384,93562.0,93557.0,0.19086993]
[1732104440763,0.053384,93562.0,93552.0,0.005]
[1732104440764,0.053387,93557.0,93556.0,0.24425693]
[1732104440964,0.053385,93561.0,93560.0,0.053385]
[1732104441352,0.053384,93561.0,93560.0,0.19082725]
[1732104441667,0.053386,93559.0,93558.0,0.19082725]
[1732104442854,0.053388,93555.0,93554.0,0.25431753]
[1732104443651,0.053388,93555.0,93554.0,0.30770553]
[1732104444447,0.053388,93555.0,93554.0,0.40280881]
[1732104446857,0.053388,93555.0,93554.0,0.34942081]
[1732104447365,0.053388,93555.0,93554.0,0.34919974]
[1732104447664,0.05339,93552.0,93551.0,0.35856971]
[1732104447871,0.05339,93552.0,93551.0,0.04056362]
[1732104448958,0.05339,93552.0,93551.0,0.2949606]
[1732104449155,0.05339,93552.0,93551.0,0.04056362]
[1732104451565,0.00060001,93555.0,93551.0,0.09395362]
[1732104451767,0.053386,93562.0,93561.0,0.053384]
[1732104452265,0.053388,93557.0,93556.0,0.053387]
[1732104452785,0.3608,93559.0,93551.0,0.04056362]
[1732104452956,0.414186,93559.0,93558.0,0.053386]
[1732104454168,0.053383,93564.0,93551.0,0.04056362]
[1732104454354,0.05339,93552.0,93551.0,0.04056362]
[1732104454758,0.41419,93552.0,93551.0,0.04056362]
[1732104457057,0.41419,93552.0,93544.0,0.053394]
[1732104457058,0.053395,93542.0,93541.0,0.19563467]
[1732104457270,0.053396,93541.0,93540.0,0.00010515]
[1732104457470,0.414196,93541.0,93540.0,0.00010515]
[1732104457669,0.414196,93541.0,93540.0,0.04049488]
[1732104457868,0.053396,93541.0,93540.0,0.00010515]